bitfinex-derivatives/quotes_BTCF0:USTF0_20241116
["timestamp","ask_amount","ask_price","bid_price","bid_amount"]
[1731729886001,0.13014491,91190.0,91178.0,0.09324]
[1731729886300,0.13014491,91189.0,91178.0,0.09324]
[1731729886602,0.13014491,91190.0,91178.0,0.09324]
[1731729886908,0.13014491,91191.0,91178.0,0.09324]
[1731729887091,0.49094491,91192.0,91178.0,0.09324]
[1731729887292,0.13014491,91190.0,91178.0,0.09324]
[1731729888103,0.13014491,91191.0,91178.0,0.09324]
[1731729888398,0.49150492,91192.0,91178.0,0.09324]
[1731729888605,0.49094491,91192.0,91178.0,0.09324]
[1731729889204,0.36136001,91192.0,91180.0,0.19486045]
[1731729889705,0.36136001,91192.0,91178.0,0.09324]
[1731729889706,0.36136001,91192.0,91179.0,0.19486045]
[1731729889905,0.3608,91192.0,91178.0,0.28810045]
[1731729890291,0.3608,91192.0,91178.0,0.09324]
[1731729890595,0.3608,91192.0,91178.0,0.28810045]
[1731729891105,0.3608,91192.0,91178.0,0.09324]
[1731729891404,0.3608,91192.0,91178.0,0.28810045]
[1731729892102,0.3608,91192.0,91178.0,0.09324]
[1731729892309,0.0039,91193.0,91178.0,0.09324]
[1731729892310,0.0039,91193.0,91186.0,0.3608]
[1731729892504,0.0039,91193.0,91187.0,0.0317]
[1731729892700,0.0039,91193.0,91178.0,0.09324]
[1731729892701,0.0039,91193.0,91178.0,0.28810045]
[1731729893004,0.0039,91193.0,91179.0,0.19486045]
[1731729893005,0.3608,91190.0,91179.0,0.19486045]
[1731729893206,0.3608,91190.0,91181.0,0.19486045]
[1731729893393,0.3608,91190.0,91178.0,0.09324]
[1731729894704,0.0039,91189.0,91178.0,0.09324]
[1731729895308,0.1036579,91183.0,91177.0,0.41738852]
[1731729895611,0.1036579,91183.0,91178.0,0.09216]
[1731729897394,0.1036579,91183.0,91177.0,0.41738852]
[1731729897597,0.1036579,91183.0,91178.0,0.09216]
[1731729897998,0.0039,91184.0,91178.0,0.09216]
[1731729899808,0.4644579,91202.0,91182.0,0.1036579]
[1731729899809,0.0039,91190.0,91182.0,0.1036579]
[1731729900109,0.3608,91202.0,91189.0,0.4644579]
[1731729900410,0.49094491,91211.0,91189.0,0.4644579]
[1731729900411,0.00056001,91211.0,91198.0,0.3608]
[1731729900607,0.0016455,91221.0,91199.0,0.0628]
[1731729901312,0.3608,91223.0,91199.0,0.0628]
[1731729902212,0.3608,91223.0,91199.0,0.25766045]
[1731729902513,0.3608,91223.0,91199.0,0.0628]
[1731729903109,0.3608,91223.0,91200.0,0.19486045]
[1731729903311,0.3608,91223.0,91201.0,0.19486045]
[1731729903611,0.3608,91223.0,91202.0,0.09216]
[1731729905113,0.3608,91223.0,91202.0,0.42108]
[1731729905305,0.3608,91223.0,91216.0,0.3608]
[1731729905499,0.3608,91223.0,91217.0,0.09216]
[1731729906205,0.00011539,91222.0,91217.0,0.09216]
[1731729907311,0.00011539,91222.0,91217.0,0.1958179]
[1731729907810,0.00011539,91222.0,91221.0,0.25981393]
[1731729908013,0.00011539,91222.0,91221.0,0.19629795]
[1731729908202,0.00011539,91222.0,91221.0,0.32888]
[1731729909608,0.00011539,91222.0,91221.0,0.09216]
[1731729909809,0.10377329,91222.0,91217.0,0.05589225]
[1731729910011,0.0332,91221.0,91220.0,0.09216]
[1731729910216,0.0645,91221.0,91217.0,0.09216]
[1731729911313,0.0645,91221.0,91211.0,0.41615668]
[1731729911519,0.0957,91221.0,91211.0,0.41615668]
[1731729911719,0.0957,91221.0,91212.0,0.09216]
[1731729911903,0.0957,91221.0,91213.0,0.09216]
[1731729912214,0.1036579,91215.0,91213.0,0.09216]
[1731729912408,0.1036579,91215.0,91211.0,0.3608]
[1731729912605,0.1036579,91215.0,91212.0,0.09216]
[1731729913014,0.3608,91213.0,91212.0,0.09216]
[1731729914407,0.3608,91213.0,91195.0,0.3608]
[1731729914608,0.3608,91196.0,91188.0,0.09216]
[1731729914809,0.0636,91195.0,91188.0,0.09216]
[1731729915200,0.0636,91195.0,91173.0,0.0332]
[1731729915201,0.1036579,91189.0,91173.0,0.0332]
[1731729915404,0.3608,91185.0,91178.0,0.05499498]
[1731729915611,0.3608,91185.0,91180.0,0.09216]
[1731729916302,0.1036579,91182.0,91181.0,0.09216]
[1731729916919,0.1036579,91182.0,91177.0,0.09216]
[1731729922213,0.1036579,91182.0,91172.0,0.3608]
[1731729922411,0.1036579,91182.0,91176.0,0.09344]
[1731729923008,9.28e-05,91181.0,91176.0,0.09344]
[1731729923321,9.28e-05,91181.0,91172.0,0.3608]
[1731729923522,9.28e-05,91181.0,91168.0,0.36952045]
[1731729923523,9.28e-05,91181.0,91173.0,0.09344]
[1731729923909,9.28e-05,91181.0,91168.0,0.36856045]
[1731729924112,0.3608,91172.0,91169.0,0.09344]
[1731729924321,0.0636,91171.0,91169.0,0.09344]
[1731729925121,0.0636,91171.0,91168.0,8.045e-05]
[1731729925717,0.1036579,91169.0,91168.0,8.045e-05]
[1731729934427,0.1036579,91169.0,91168.0,1.48e-05]
[1731729934813,0.1581781,91169.0,91168.0,1.48e-05]
[1731729937318,0.4872581,91169.0,91168.0,1.48e-05]
[1731729938222,0.1581781,91169.0,91168.0,1.48e-05]
[1731729938423,0.4872581,91169.0,91168.0,1.48e-05]
[1731729938623,0.1581781,91169.0,91168.0,1.48e-05]
[1731729938818,0.4872581,91169.0,91168.0,1.48e-05]
[1731729939023,0.1581781,91169.0,91168.0,1.48e-05]
[1731729939222,0.4872581,91169.0,91168.0,1.48e-05]
[1731729939722,0.1581781,91169.0,91168.0,1.48e-05]
[1731729942926,0.3836002,91169.0,91168.0,1.48e-05]
[1731729943128,0.1581781,91169.0,91168.0,1.48e-05]
[1731729945327,0.28774958,91169.0,91168.0,1.48e-05]
[1731729946232,0.1581781,91169.0,91168.0,1.48e-05]
[1731729949435,0.21150908,91169.0,91168.0,1.48e-05]
[1731729950340,0.21150908,91169.0,91168.0,0.0087848]
[1731729950640,0.34976461,91169.0,91168.0,0.0087848]
[1731729952247,0.21150908,91169.0,91168.0,0.0087848]
[1731729953733,0.34863652,91169.0,91168.0,0.0087848]
[1731729954641,0.29411632,91169.0,91168.0,0.0087848]
[1731729954938,0.35254668,91169.0,91168.0,0.0087848]
[1731729955140,0.15698888,91169.0,91168.0,0.0087848]
[1731729955942,0.05333098,91169.0,91168.0,0.0087848]
[1731729956141,0.16298323,91169.0,91168.0,0.0087848]
[1731729956333,0.13037343,91169.0,91168.0,0.0087848]
[1731729956838,0.1036579,91171.0,91168.0,0.0087848]
[1731729957544,0.16298323,91170.0,91168.0,0.0087848]
[1731729957743,0.26664113,91171.0,91168.0,0.0087848]
[1731729958045,0.36136001,91172.0,91168.0,0.0087848]
[1731729958337,0.13036598,91173.0,91168.0,0.0087848]
[1731729958549,9.28e-05,91181.0,91169.0,0.26134453]
[1731729958844,9.28e-05,91181.0,91173.0,0.19713354]
[1731729959435,0.1036579,91179.0,91174.0,0.19713354]
[1731729959834,0.1036579,91179.0,91173.0,0.19713354]
[1731729960039,0.1036579,91179.0,91172.0,0.19713354]
[1731729960343,9.28e-05,91181.0,91172.0,0.19713354]
[1731729960731,9.28e-05,91181.0,91171.0,0.094]
[1731729960732,9.28e-05,91181.0,91174.0,0.19713354]
[1731729961346,9.28e-05,91181.0,91173.0,0.19713354]
[1731729961656,9.28e-05,91181.0,91174.0,0.19713354]
[1731729961944,9.28e-05,91181.0,91173.0,0.19713354]
[1731729962335,9.28e-05,91181.0,91174.0,0.19713354]
[1731729962740,9.28e-05,91181.0,91180.0,0.3608]
[1731729962943,9.28e-05,91181.0,91180.0,0.62214453]
[1731729963143,9.28e-05,91181.0,91180.0,0.3608]
[1731729963446,9.28e-05,91181.0,91180.0,0.55755187]
[1731729963748,9.28e-05,91181.0,91180.0,0.3608]
[1731729964152,0.16298323,91225.0,91192.0,0.0039]
[1731729964336,0.1955578,91228.0,91210.0,0.3608]
[1731729964337,0.16298323,91228.0,91210.0,0.3608]
[1731729964649,0.3608,91229.0,91211.0,0.094]
[1731729964946,0.1036579,91217.0,91201.0,0.1965411]
[1731729965144,0.3608,91220.0,91200.0,0.3608]
[1731729965145,0.1036579,91202.0,91200.0,0.3608]
[1731729965343,0.1036579,91209.0,91201.0,0.094]
[1731729966545,0.1036579,91209.0,91200.0,0.41584983]
[1731729966546,0.1036579,91202.0,91200.0,0.36184]
[1731729966746,0.00012087,91216.0,91200.0,0.36184]
[1731729966747,0.1036579,91209.0,91200.0,0.3608]
[1731729968246,0.10377877,91216.0,91200.0,0.3608]
[1731729968447,0.00012087,91216.0,91200.0,0.3608]
[1731729968679,0.00012087,91216.0,91208.0,0.3608]
[1731729972880,0.00012087,91216.0,91215.0,0.1036579]
[1731729973083,0.00251,91227.0,91215.0,0.4976179]
[1731729973385,0.1036579,91216.0,91213.0,0.0621]
[1731729973584,0.1036579,91224.0,91214.0,0.09396]
[1731729973782,0.00251,91227.0,91213.0,0.031]
[1731729974082,0.0051,91248.0,91226.0,0.1036579]
[1731729974284,0.0051,91265.0,91247.0,0.4644579]
[1731729974488,0.13595791,91279.0,91227.0,0.12496]
[1731729974489,0.02192564,91282.0,91263.0,0.3608]
[1731729974690,0.3608,91277.0,91264.0,0.09396]
[1731729974987,0.02192564,91282.0,91264.0,0.09396]
[1731729975185,0.3608,91273.0,91264.0,0.09396]
[1731729976076,0.3608,91273.0,91263.0,0.3608]
[1731729976284,0.3608,91273.0,91264.0,0.09392]
[1731729976479,0.032,91272.0,91264.0,0.09392]
[1731729976790,0.032,91272.0,91264.0,0.01665297]
[1731729977180,0.032,91272.0,91263.0,0.3608]
[1731729977376,0.1036579,91271.0,91263.0,0.3608]
[1731729977582,0.1363579,91271.0,91263.0,0.3608]
[1731729978086,0.1363579,91271.0,91236.0,0.0319]
[1731729978087,0.3608,91264.0,91248.0,0.09392]
[1731729978286,0.3608,91264.0,91236.0,0.3927]
[1731729978287,0.1036579,91261.0,91244.0,0.09392]
[1731729978787,0.0328,91263.0,91244.0,0.09392]
[1731729979088,0.3608,91256.0,91244.0,0.09392]
[1731729980687,0.3608,91256.0,91245.0,0.3608]
[1731729980880,0.3608,91256.0,91244.0,0.09392]
[1731729981571,0.3608,91262.0,91244.0,0.09392]
[1731729981979,0.3608,91262.0,91251.0,0.09392]
[1731729982992,0.0327,91271.0,91254.0,0.3608]
[1731729983289,0.36140001,91277.0,91259.0,0.1036579]
[1731729984285,0.36140001,91277.0,91266.0,0.3608]
[1731729984585,0.36140001,91277.0,91267.0,0.09452]
[1731729985670,0.3608,91277.0,91267.0,0.09452]
[1731729988172,0.3608,91277.0,91266.0,0.3608]
[1731729988357,0.1036579,91275.0,91267.0,0.09448]
[1731729988666,0.1036579,91275.0,91254.0,0.4166804]
[1731729988667,0.1036579,91275.0,91261.0,0.09448]
[1731729989061,0.1036579,91275.0,91254.0,0.4166004]
[1731729989263,0.3608,91263.0,91255.0,0.09448]
[1731729989565,0.3608,91277.0,91262.0,0.1036579]
[1731729989766,0.0621,91280.0,91263.0,0.3608]
[1731729990566,0.0305,91280.0,91277.0,0.3608]
[1731729991265,0.0305,91280.0,91265.0,0.0302]
[1731729991559,0.0305,91280.0,91266.0,0.09448]
[1731729992461,0.3608,91275.0,91266.0,0.09448]
[1731729994165,0.0305,91280.0,91266.0,0.09448]
[1731729994359,0.0305,91280.0,91268.0,0.1036579]
[1731729994764,9.716e-05,91281.0,91268.0,0.1036579]
[1731729995261,9.716e-05,91281.0,91266.0,0.45624]
[1731729995465,9.716e-05,91281.0,91267.0,0.1036579]
[1731730001665,0.16298323,91277.0,91267.0,0.1036579]
[1731730002275,0.16298323,91274.0,91267.0,0.1036579]
[1731730002575,0.16298323,91273.0,91267.0,0.1036579]
[1731730003173,0.19565496,91281.0,91267.0,0.1036579]
[1731730003174,0.16298323,91271.0,91267.0,0.1036579]
[1731730004773,0.16298323,91271.0,91268.0,0.09448]
[1731730005181,0.16298323,91272.0,91268.0,0.09448]
[1731730005683,0.16298323,91271.0,91268.0,0.09448]
[1731730006178,0.16298323,91272.0,91268.0,0.09448]
[1731730006367,0.16298323,91272.0,91266.0,0.41563412]
[1731730006566,0.16298323,91270.0,91267.0,0.09448]
[1731730007374,0.16298323,91271.0,91267.0,0.1981379]
[1731730007878,0.16298323,91273.0,91267.0,0.5268179]
[1731730008069,0.16298323,91279.0,91272.0,0.1036579]
[1731730008275,0.16298323,91279.0,91271.0,0.3608]
[1731730008276,9.716e-05,91281.0,91280.0,0.1036579]
[1731730008471,9.716e-05,91281.0,91280.0,0.5589379]
[1731730009575,9.716e-05,91281.0,91280.0,0.5588979]
[1731730009770,9.716e-05,91281.0,91276.0,0.1965411]
[1731730010080,9.716e-05,91281.0,91277.0,0.09444]
[1731730010287,9.716e-05,91281.0,91275.0,0.09444]
[1731730010465,9.716e-05,91281.0,91271.0,0.3608]
[1731730010466,0.16308039,91281.0,91273.0,0.09444]
[1731730011177,0.16298323,91279.0,91273.0,0.09444]
[1731730011473,0.16308039,91281.0,91273.0,0.09444]
[1731730012177,0.52378323,91278.0,91270.0,0.15043758]
[1731730012479,0.16298323,91275.0,91270.0,0.0968]
[1731730012665,0.16298323,91273.0,91270.0,0.0968]
[1731730012868,0.16298323,91274.0,91270.0,0.0968]
[1731730013274,0.16298323,91273.0,91270.0,0.0968]
[1731730013877,0.16298323,91273.0,91263.0,0.1965411]
[1731730014170,0.0532588,91277.0,91261.0,0.0968]
[1731730014171,0.16298323,91269.0,91261.0,0.0968]
[1731730014374,0.3608,91277.0,91264.0,0.1036579]
[1731730014375,0.16298323,91268.0,91264.0,0.1036579]
[1731730014579,0.16298323,91271.0,91264.0,0.1036579]
[1731730014779,0.3608,91277.0,91264.0,0.1036579]
[1731730014780,0.16298323,91273.0,91264.0,0.1036579]
[1731730014974,0.16298323,91274.0,91264.0,0.1036579]
[1731730015273,0.16298323,91274.0,91264.0,0.300199]
[1731730015674,0.16298323,91274.0,91264.0,0.1036579]
[1731730015873,0.16298323,91274.0,91264.0,0.300199]
[1731730016178,0.3608,91277.0,91264.0,0.300199]
[1731730016179,0.16298323,91275.0,91265.0,0.1965411]
[1731730016566,0.16298323,91276.0,91266.0,0.1965411]
[1731730017174,0.52378323,91277.0,91267.0,0.1965411]
[1731730017480,0.16298323,91277.0,91267.0,0.1965411]
[1731730017778,0.52378323,91277.0,91267.0,0.1965411]
[1731730018171,0.3608,91277.0,91269.0,0.1965411]
[1731730018377,0.13050382,91271.0,91269.0,0.1965411]
[1731730018576,0.13050382,91270.0,91268.0,0.1965411]
[1731730019175,0.13050382,91270.0,91264.0,0.3657127]
[1731730019380,0.13050382,91270.0,91264.0,0.42091212]
[1731730019579,0.13050382,91270.0,91269.0,0.19694351]
[1731730020082,0.13050382,91270.0,91265.0,0.2620548]
[1731730020375,0.13050382,91273.0,91265.0,0.2620548]
[1731730020577,0.3608,91277.0,91265.0,0.2620548]
[1731730020578,0.13050382,91275.0,91272.0,0.1036579]
[1731730020767,0.13050382,91279.0,91273.0,0.0322]
[1731730020970,0.13050382,91280.0,91278.0,0.4644579]
[1731730021171,9.716e-05,91281.0,91278.0,0.4644579]
[1731730021172,0.13060098,91281.0,91278.0,0.4644579]
[1731730021377,9.716e-05,91281.0,91279.0,0.19693007]
[1731730021679,9.716e-05,91281.0,91280.0,0.19693007]
[1731730021872,9.716e-05,91281.0,91278.0,0.4654179]
[1731730021873,9.716e-05,91281.0,91278.0,0.4654979]
[1731730022072,9.716e-05,91281.0,91280.0,0.26250564]
[1731730022283,9.716e-05,91281.0,91278.0,0.4644579]
[1731730024884,0.13050382,91280.0,91279.0,0.0968]
[1731730025081,0.13050382,91280.0,91279.0,0.2004579]
[1731730025577,0.13050382,91280.0,91279.0,0.0968]
[1731730025788,0.19405983,91280.0,91279.0,0.0968]
[1731730026088,0.0636,91280.0,91279.0,0.0968]
[1731730026271,0.19405225,91280.0,91278.0,0.00096]
[1731730026476,0.0636,91280.0,91271.0,0.0968]
[1731730026680,0.22658323,91280.0,91271.0,0.0968]
[1731730026884,0.13044835,91272.0,91271.0,0.15084651]
[1731730027183,0.13043906,91272.0,91271.0,0.15084651]
[1731730027683,0.13043906,91272.0,91263.0,0.30040697]
[1731730027879,0.13043906,91272.0,91264.0,0.0968]
[1731730028670,0.0328,91277.0,91264.0,0.0968]
[1731730028671,0.13043906,91271.0,91264.0,0.0968]
[1731730029676,0.13043906,91272.0,91264.0,0.0968]
[1731730029878,0.13043906,91272.0,91263.0,0.30040697]
[1731730030076,0.13043906,91272.0,91264.0,0.0968]
[1731730030281,0.13043906,91266.0,91264.0,0.0968]
[1731730030972,0.13043906,91266.0,91260.0,0.3608]
[1731730031172,0.13043906,91266.0,91255.0,0.30040697]
[1731730031376,0.13043906,91265.0,91256.0,0.0968]
[1731730031574,0.3608,91273.0,91263.0,0.1967445]
[1731730031774,0.3608,91273.0,91256.0,0.0968]
[1731730031775,0.3608,91273.0,91264.0,0.1967445]
[1731730032583,0.3608,91273.0,91263.0,0.1967445]
[1731730032790,0.3608,91273.0,91264.0,0.1967445]
[1731730033375,0.3608,91273.0,91263.0,0.1967445]
[1731730033687,0.3608,91273.0,91264.0,0.1967445]
[1731730034190,0.3608,91273.0,91265.0,0.1967445]
[1731730035580,0.3608,91273.0,91266.0,0.1967445]
[1731730035781,0.3608,91273.0,91267.0,0.1967445]
[1731730036382,0.3608,91273.0,91266.0,0.1967445]
[1731730036681,0.3608,91273.0,91267.0,0.1967445]
[1731730037385,0.3608,91273.0,91268.0,0.1967445]
[1731730037583,0.3608,91273.0,91267.0,0.1967445]
[1731730039179,0.0328,91277.0,91271.0,0.6612024]
[1731730039377,9.716e-05,91281.0,91275.0,0.2623321]
[1731730039578,9.716e-05,91281.0,91280.0,0.3608]
[1731730042398,9.716e-05,91281.0,91280.0,0.4592]
[1731730043082,9.716e-05,91281.0,91280.0,0.3608]
[1731730043285,9.716e-05,91281.0,91277.0,0.0984]
[1731730043286,0.13053622,91281.0,91277.0,0.0984]
[1731730043479,0.13043906,91280.0,91277.0,0.0984]
[1731730044788,0.13043906,91279.0,91277.0,0.0984]
[1731730045889,0.3608,91278.0,91277.0,0.0984]
[1731730046976,0.3608,91278.0,91276.0,0.00876]
[1731730049683,9.716e-05,91281.0,91277.0,0.5628579]
[1731730049887,9.716e-05,91281.0,91278.0,0.0317]
[1731730050385,9.716e-05,91281.0,91277.0,0.79223424]
[1731730050586,9.716e-05,91281.0,91280.0,0.19657634]
[1731730051499,9.716e-05,91281.0,91280.0,0.1966053]
[1731730051679,9.716e-05,91281.0,91279.0,0.1966053]
[1731730051879,9.716e-05,91281.0,91278.0,0.1966053]
[1731730054289,9.716e-05,91281.0,91276.0,0.00876]
[1731730054998,0.13042026,91277.0,91276.0,0.00876]
[1731730055188,9.716e-05,91281.0,91276.0,0.00876]
[1731730055587,0.16308039,91281.0,91276.0,0.00876]
[1731730055989,0.0325,91280.0,91276.0,0.00876]
[1731730056194,0.19548323,91280.0,91276.0,0.00876]
[1731730056493,0.16298323,91278.0,91276.0,0.00876]
[1731730056695,0.0325,91280.0,91276.0,0.00876]
[1731730056696,0.16298323,91279.0,91276.0,0.00876]
[1731730057008,0.19598323,91277.0,91276.0,0.00876]
[1731730057498,0.22708323,91277.0,91276.0,0.00876]
[1731730057684,0.0641,91277.0,91276.0,0.00876]
[1731730057886,0.22708323,91277.0,91276.0,0.00876]
[1731730058494,0.0641,91277.0,91276.0,0.00876]
[1731730060391,0.22708323,91277.0,91276.0,0.00876]
[1731730061795,0.0641,91277.0,91276.0,0.00876]
[1731730063701,0.4249,91277.0,91276.0,0.00876]
[1731730065896,0.55542242,91277.0,91276.0,0.00876]
[1731730066399,1.10718112,91277.0,91261.0,0.1966053]
[1731730066600,0.3608,91262.0,91257.0,0.1966053]
[1731730066904,0.3608,91262.0,91255.0,0.1966053]
[1731730068200,0.3608,91262.0,91256.0,0.1966053]
[1731730068395,0.3608,91262.0,91255.0,0.1966053]
[1731730068695,0.3608,91262.0,91256.0,0.1966053]
[1731730069104,0.3608,91262.0,91251.0,0.2623321]
[1731730069105,0.3608,91262.0,91255.0,0.1966053]
[1731730069799,0.13050672,91259.0,91250.0,0.00010265]
[1731730069995,0.13050672,91260.0,91250.0,0.00010265]
[1731730070192,0.13050672,91259.0,91258.0,0.1036579]
[1731730070502,0.3608,91262.0,91258.0,0.1036579]
[1731730070694,0.3608,91262.0,91259.0,0.0961]
[1731730070899,0.3608,91262.0,91260.0,0.0984]
[1731730071307,0.13050672,91271.0,91261.0,0.3608]
[1731730071508,0.13050672,91270.0,91261.0,0.3608]
[1731730071704,0.13050672,91271.0,91261.0,0.3608]
[1731730072009,0.13050672,91271.0,91269.0,0.3608]
[1731730072204,9.716e-05,91281.0,91270.0,0.34579914]
[1731730072501,9.716e-05,91281.0,91280.0,0.3608]
[1731730072704,9.716e-05,91281.0,91280.0,0.458]
[1731730072907,9.716e-05,91281.0,91280.0,0.47511914]
[1731730073109,9.716e-05,91281.0,91280.0,0.50691914]
[1731730074213,9.716e-05,91281.0,91280.0,0.7035217]
[1731730075005,9.716e-05,91281.0,91280.0,0.50691914]
[1731730075404,9.716e-05,91281.0,91280.0,0.01711914]
[1731730075604,9.716e-05,91281.0,91274.0,0.19655702]
[1731730075801,9.716e-05,91281.0,91273.0,0.0972]
[1731730076006,0.13060388,91281.0,91273.0,0.0972]
[1731730076707,9.716e-05,91281.0,91274.0,0.19655702]
[1731730077102,9.716e-05,91281.0,91273.0,0.29375702]
[1731730077806,9.716e-05,91281.0,91274.0,0.19655702]
[1731730078706,9.716e-05,91281.0,91275.0,0.19655702]
[1731730079501,9.716e-05,91281.0,91273.0,0.0972]
[1731730079502,9.716e-05,91281.0,91276.0,0.19655702]
[1731730079904,9.716e-05,91281.0,91277.0,0.19655702]
[1731730080105,9.716e-05,91281.0,91278.0,0.19655702]
[1731730080308,9.716e-05,91281.0,91279.0,0.19655702]
[1731730080505,9.716e-05,91281.0,91278.0,0.19655702]
[1731730080707,9.716e-05,91281.0,91280.0,0.19655702]
[1731730081003,9.716e-05,91281.0,91277.0,0.3608]
[1731730081004,9.716e-05,91281.0,91278.0,0.19654717]
[1731730081207,9.716e-05,91281.0,91277.0,0.55734717]
[1731730081409,9.716e-05,91281.0,91277.0,0.3608]
[1731730082314,9.716e-05,91281.0,91277.0,0.55734717]
[1731730082721,9.716e-05,91281.0,91278.0,0.19654717]
[1731730083022,9.716e-05,91281.0,91279.0,0.19654717]
[1731730083316,9.716e-05,91281.0,91277.0,0.19654717]
[1731730083515,9.716e-05,91281.0,91272.0,0.0972]
[1731730083516,9.716e-05,91281.0,91276.0,0.19654717]
[1731730083810,9.716e-05,91281.0,91275.0,0.19654717]
[1731730084003,9.716e-05,91281.0,91272.0,0.0972]
[1731730084204,9.716e-05,91281.0,91272.0,0.29374717]
[1731730084409,9.716e-05,91281.0,91272.0,0.0972]
[1731730085515,0.1036579,91276.0,91268.0,0.19654717]
[1731730085817,0.3608,91277.0,91265.0,0.19654717]
[1731730086015,0.3608,91277.0,91266.0,0.0323]
[1731730086214,0.3608,91277.0,91266.0,0.22884717]
[1731730086414,0.3608,91277.0,91269.0,0.19654717]
[1731730086722,0.3608,91276.0,91269.0,0.19654717]
[1731730086915,0.3608,91276.0,91267.0,0.26227374]
[1731730087115,0.1036579,91274.0,91264.0,0.1965945]
[1731730087421,0.3608,91276.0,91260.0,0.00096]
[1731730087422,0.4644579,91267.0,91260.0,0.00096]
[1731730087724,0.4644579,91267.0,91253.0,0.35947374]
[1731730087725,0.0303,91266.0,91254.0,0.1965945]
[1731730087909,0.0303,91266.0,91253.0,0.0972]
[1731730089317,0.0303,91266.0,91253.0,0.2937945]
[1731730089522,0.0303,91266.0,91253.0,0.0972]
[1731730090020,0.0303,91266.0,91253.0,0.2937945]
[1731730090520,0.0303,91266.0,91255.0,0.1965945]
[1731730090722,0.0303,91266.0,91256.0,0.0972]
[1731730098530,0.0303,91266.0,91256.0,0.15121689]
[1731730099026,0.0303,91266.0,91256.0,0.0972]
[1731730099934,0.0303,91266.0,91258.0,0.1965945]
[1731730100128,0.0303,91266.0,91259.0,0.1965945]
[1731730100329,0.36140001,91267.0,91256.0,0.0972]
[1731730100330,0.36140001,91267.0,91258.0,0.1965945]
[1731730100532,0.3608,91267.0,91259.0,0.1965945]
[1731730101238,0.3608,91267.0,91260.0,0.1965945]
[1731730101431,0.3608,91267.0,91258.0,0.0972]
[1731730103440,0.3608,91267.0,91259.0,0.1965945]
[1731730103636,0.3608,91267.0,91260.0,0.1965945]
[1731730103838,0.3608,91267.0,91259.0,0.1965945]
[1731730104042,0.3608,91267.0,91260.0,0.1965945]
[1731730104338,0.3608,91267.0,91255.0,0.31694811]
[1731730104339,0.3608,91267.0,91259.0,0.1965945]
[1731730104531,0.3608,91267.0,91260.0,0.1965945]
[1731730104729,0.1036579,91266.0,91261.0,0.1965945]
[1731730105039,0.1036579,91266.0,91256.0,0.1965945]
[1731730105341,0.1036579,91266.0,91257.0,0.1965945]
[1731730105733,0.3608,91259.0,91254.0,0.1965945]
[1731730106242,0.0324,91258.0,91250.0,0.00010265]
[1731730108745,0.0324,91258.0,91250.0,0.19669715]
[1731730109043,0.0324,91258.0,91251.0,0.1965945]
[1731730109243,0.0324,91258.0,91250.0,0.19669715]
[1731730109443,0.3608,91259.0,91250.0,0.19669715]
[1731730109636,0.3608,91259.0,91258.0,0.1036579]
[1731730110145,0.0051,91271.0,91258.0,0.1036579]
[1731730110346,0.063,91273.0,91263.0,0.19674086]
[1731730111037,0.063,91273.0,91264.0,0.19674086]
[1731730111236,0.3608,91270.0,91264.0,0.19674086]
[1731730111437,0.3608,91270.0,91265.0,0.19674086]
[1731730111941,0.3608,91270.0,91264.0,0.19674086]
[1731730112142,0.3608,91270.0,91258.0,0.1036579]
[1731730112143,0.3608,91270.0,91265.0,0.19674086]
[1731730112631,0.3608,91270.0,91267.0,0.19674086]
[1731730113138,0.063,91273.0,91267.0,0.19674086]
[1731730113339,0.063,91273.0,91268.0,0.19674086]
[1731730113340,0.19350672,91273.0,91268.0,0.19674086]
[1731730114045,0.13050672,91272.0,91268.0,0.19674086]
[1731730114245,0.13050672,91275.0,91269.0,0.3608]
[1731730114550,0.3608,91298.0,91274.0,0.1036579]
[1731730114551,0.13050672,91282.0,91274.0,0.1036579]
[1731730114738,0.00056001,91288.0,91279.0,0.26227374]
[1731730114739,0.49130672,91288.0,91279.0,0.26227374]
[1731730114938,0.13050672,91280.0,91278.0,0.3608]
[1731730115250,0.13050672,91282.0,91278.0,0.3608]
[1731730115840,0.13060388,91281.0,91278.0,0.3608]
[1731730116142,0.13050672,91280.0,91279.0,0.09704]
[1731730118350,9.716e-05,91281.0,91279.0,0.09704]
[1731730118351,0.13060388,91281.0,91279.0,0.09704]
[1731730119448,9.716e-05,91281.0,91279.0,0.09704]
[1731730124048,9.716e-05,91281.0,91278.0,0.001]
[1731730124252,9.716e-05,91281.0,91266.0,0.29385069]
[1731730124444,9.716e-05,91281.0,91267.0,0.097]
[1731730124445,0.13035942,91274.0,91267.0,0.097]
[1731730124643,0.13035942,91274.0,91258.0,0.1593338]
[1731730124644,0.16305942,91273.0,91265.0,0.097]
[1731730124844,0.0327,91273.0,91265.0,0.097]
[1731730125355,0.16305942,91273.0,91265.0,0.097]
[1731730125740,0.0612,91272.0,91265.0,0.097]
[1731730126343,0.19155942,91272.0,91265.0,0.097]
[1731730126844,0.19155942,91272.0,91255.0,0.22805069]
[1731730126845,0.1036579,91269.0,91255.0,0.19685069]
[1731730127045,0.13035942,91268.0,91257.0,0.09704]
[1731730127651,0.13035942,91268.0,91252.0,0.19685069]
[1731730127652,0.3608,91263.0,91252.0,0.19685069]
[1731730127846,0.49115942,91263.0,91250.0,0.05535128]
[1731730128151,0.13035942,91262.0,91250.0,0.00010265]
[1731730129844,0.13035942,91259.0,91250.0,0.00010265]
[1731730130053,0.13035942,91260.0,91250.0,0.00010265]
[1731730130849,0.13035942,91261.0,91250.0,0.00010265]
[1731730131258,0.13035942,91260.0,91250.0,0.00010265]
[1731730131555,0.13035942,91261.0,91250.0,0.00010265]
[1731730132247,0.13035942,91262.0,91256.0,0.1036579]
[1731730132449,0.1036579,91286.0,91261.0,0.1036579]
[1731730132450,0.13035942,91270.0,91261.0,0.1036579]
[1731730132749,0.13545942,91280.0,91269.0,0.1036579]
[1731730132949,0.13045658,91281.0,91270.0,0.09704]
[1731730133150,9.716e-05,91281.0,91270.0,0.09704]
[1731730133660,0.13045658,91281.0,91270.0,0.09704]
[1731730133857,0.13045658,91281.0,91271.0,0.00876]
[1731730135447,0.13035942,91280.0,91271.0,0.00876]
[1731730136261,0.13035942,91279.0,91271.0,0.00876]
[1731730136960,9.716e-05,91281.0,91271.0,0.00876]
[1731730137161,9.716e-05,91281.0,91271.0,0.20561069]
[1731730137564,9.716e-05,91281.0,91272.0,0.19685069]
[1731730137856,9.716e-05,91281.0,91271.0,0.20561069]
[1731730138251,9.716e-05,91281.0,91272.0,0.19685069]
[1731730139059,9.716e-05,91281.0,91273.0,0.19685069]
[1731730139767,0.3608,91279.0,91273.0,0.19685069]
[1731730140261,0.3608,91279.0,91272.0,0.19685069]